{"text_format":"1","workbook":"xlsx","n_sheets":6,"sheets":["表紙","自己採点シート","学習自己点検シート ","単位修得状況確認表（共通教育科目，一般学生）","単位修得状況確認表（専門教育科目）","累積グラフ"],"not_rendered":{"charts":10,"images":2,"macros":1,"external_links":0,"defined_names":5,"comments":0,"pivot_tables":0},"unopened":[],"bounds":{"document_bytes":16777216,"sheet_cells":100000,"rows_first":2000,"rows_last":500,"rows_between":2000,"halvings":0,"cell_chars":16384,"cell_head_chars":4096},"cells_cut":0,"cells_raw":0,"read":"whole","date_system":"1900"}

{"sheet":"表紙","index":0,"n_rows":34,"n_cols":2,"rows_kept":34,"cut":false,"hidden":false,"merged":[]}
[]
[]
[]
[]
[]
[]
[]
[]
[]
[]
[]
[null,"鹿児島大学工学部ポートフォリオ"]
[]
[]
[]
[]
[]
[]
[]
[]
[]
[]
[]
[]
[]
[]
[]
[]
[]
[]
[]
[null,"学科："]
[null,"氏名："]
[null,"学籍番号："]

{"sheet":"自己採点シート","index":1,"n_rows":22,"n_cols":21,"rows_kept":22,"cut":false,"hidden":false,"merged":[[19,2,19,5],[20,2,20,5],[21,2,21,5],[13,2,13,5],[14,2,14,5],[15,2,15,5],[16,2,16,5],[17,2,17,5],[18,2,18,5],[12,2,12,5],[3,10,3,11],[3,19,3,20],[9,2,9,5],[10,2,10,5],[11,2,11,5]]}
[]
[null,"自己採点シート"]
[]
[null,null,null,null,null,null,null,null,null,"学籍番号",null,null,null,null,null,null,null,null,"氏名"]
[]
[null,"■学生のみなさんへ"]
[null,null,"今期受講した科目に関して、以下の項目に対して自己採点をしてください。(１０点満点)"]
[]
[]
[null,null,"項目",null,null,null,"2017年度\n前期","2017年度\n後期","2018年度\n前期","2018年度\n後期","2019年度\n前期","2019年度\n後期","2018年度\n前期","2018年度\n後期","2019年度\n前期","2019年度\n後期","2020年度\n前期","2020年度\n後期","2020年度\n前期","2020年度\n後期","卒業時"]
[null,1,"工学に関しての基礎知識\n（物理・化学・数学・情報など）"]
[null,2,"各工学分野での基礎知識\n（専門科目など）"]
[null,3,"人前での発表能力"]
[null,4,"人と話し合ったり議論する能力"]
[null,5,"チームの一員として取り組める（チームワーク）能力"]
[null,6,"英語、その他外国語による表現力"]
[null,7,"読書、講習会への参加、英会話や情報処理学習など大学以外での学習による自己啓発・生涯学習能力"]
[null,8,"社会性や国際感覚が身についているか。"]
[null,9,"倫理観、責任感が身についているか。"]
[null,10]
[null,11]
[null,12]

{"sheet":"学習自己点検シート ","index":2,"n_rows":68,"n_cols":13,"rows_kept":68,"cut":false,"hidden":false,"merged":[[4,8,4,9],[4,11,4,12],[7,2,7,12]]}
[]
[null,null,null,null,null,null,null,null,null,null,null,"年度","期"]
[null,"学習自己点検シート"]
[]
[null,null,null,null,null,null,null,"学籍番号",null,null,"氏名"]
[]
[null,"■学生のみなさんへ"]
[null,null,"学生生活全般に関して自己点検をお願いしています。今期受講した科目に関して、以下の質問項目に答えてください。面談時、指導教員（アドバイザー）の先生方から回答に対する具体的なアドバイスを受けてください。"]
[]
[]
[null,"■回答項目"]
[]
[null,1,"今期の目標は達成できましたか。"]
[]
[]
[]
[]
[null,2,"講義への取り組みは積極的でしたか。また、積極的に取り組むことができなかった講義は具体的に何ですか。"]
[]
[]
[]
[]
[null,3,"講義毎に勉強方法がつかめていますか。"]
[]
[]
[]
[]
[null,4,"それぞれの講義の理解度は自分の目標に達していますか。理解度が足りないと感じている講義は何ですか。"]
[]
[]
[]
[]
[null,5,"平日（試験勉強以外）１日当たりの勉強時間（平均）はどのくらいですか。勉強時間が足りないと感じている講義は何ですか。"]
[]
[]
[]
[]
[null,6,"アルバイトと勉強は両立できましたか。"]
[]
[]
[]
[]
[null,7,"サークル活動と勉強は両立できましたか。"]
[]
[]
[]
[]
[null,8,"卒業後の進路についてどのように考えていますか。"]
[]
[]
[]
[]
[null,9,"その他、アドバイスが必要なことはありますか。"]
[]
[]
[]
[]
[null,10]
[]
[]
[]
[]
[null,11]
[]
[]
[]
[]
[null,12]

{"sheet":"単位修得状況確認表（共通教育科目，一般学生）","index":3,"n_rows":37,"n_cols":49,"rows_kept":37,"cut":false,"hidden":false,"merged":[[26,0,26,6],[26,7,26,8],[26,9,26,10],[26,11,26,12],[26,13,26,14],[26,15,26,16],[25,19,25,20],[25,21,25,22],[25,23,25,24],[25,25,25,26],[26,17,26,18],[26,19,26,20],[26,21,26,22],[26,23,26,24],[26,25,26,26],[24,39,24,40],[25,0,25,6],[25,7,25,8],[25,9,25,10],[25,11,25,12],[25,13,25,14],[25,15,25,16],[25,17,25,18],[25,27,25,28],[25,29,25,30],[19,40,20,40],[6,0,14,0],[6,1,11,3],[9,4,10,4],[12,1,13,3],[22,0,22,6],[23,1,23,10],[15,0,21,0],[15,1,18,3],[16,4,18,4],[19,1,20,3],[4,25,4,26],[3,27,3,30],[3,31,3,34],[3,35,3,38],[4,35,4,36],[4,27,4,28],[4,29,4,30],[4,31,4,32],[4,33,4,34],[3,7,3,10],[3,11,3,14],[3,15,3,18],[3,19,3,22],[3,23,3,26],[1,0,1,41],[2,0,5,6],[2,7,2,38],[2,39,5,39],[2,40,5,40],[2,41,5,41],[4,7,4,8],[4,9,4,10],[4,11,4,12],[4,13,4,14],[4,37,4,38],[4,15,4,16],[4,17,4,18],[4,19,4,20],[4,21,4,22],[4,23,4,24],[27,25,27,26],[27,27,27,28],[27,29,27,30],[27,31,27,32],[27,33,27,34],[27,0,27,6],[27,7,27,8],[27,9,27,10],[27,11,27,12],[27,13,27,14],[27,15,27,16],[27,17,27,18],[27,19,27,20],[27,21,27,22],[27,23,27,24],[27,35,27,36],[27,37,27,38],[26,31,26,32],[26,33,26,34],[26,35,26,36],[26,37,26,38],[26,27,26,28],[25,31,25,32],[25,33,25,34],[25,35,25,36],[25,37,25,38],[26,29,26,30]]}
[null,null,null,null,null,null,null,null,null,null,null,null,null,null,null,null,null,null,null,null,null,null,null,null,null,null,null,null,null,null,null,null,null,null,null,null,null,null,null,null,null,null,null,null,null,null,null,null,"A"]
["単位修得状況確認表（共通教育科目：一般学生）",null,null,null,null,null,null,null,null,null,null,null,null,null,null,null,null,null,null,null,null,null,null,null,null,null,null,null,null,null,null,null,null,null,null,null,null,null,null,null,null,null,null,null,null,null,null,null,"B"]
["　",null,null,null,null,null,null,"取得単位数およびGP",null,null,null,null,null,null,null,null,null,null,null,null,null,null,null,null,null,null,null,null,null,null,null,null,null,null,null,null,null,null,null,"取得単位数","要修得\n単位数","累積GP",null,null,"当該期修得単位の入力要領（共通教育科目）",null,null,null,"C"]
[null,null,null,null,null,null,null,"　年次",null,null,null,"　年次",null,null,null,"　年次",null,null,null,"　年次",null,null,null,"　年次",null,null,null,"　年次",null,null,null,"　年次",null,null,null,"　年次",null,null,null,null,null,null,null,null,"１．黄色枠に各科目(英語の場合は修得した合計",null,null,null,"D"]
[null,null,null,null,null,null,null,"１期",null,"２期",null,"３期",null,"４期",null,"５期",null,"６期",null,"７期",null,"８期",null,"９期",null,"10期",null,"11期",null,"12期",null,"13期",null,"14期",null,"15期",null,"16期",null,null,null,null,null,null,"　　単位数)の修得単位数を記入する。",null,null,null,"F"]
[null,null,null,null,null,null,null,"単位","合計GP","単位","合計GP","単位","合計GP","単位","合計GP","単位","合計GP","単位","合計GP","単位","合計GP","単位","合計GP","単位","合計GP","単位","合計GP","単位","合計GP","単位","合計GP","単位","合計GP","単位","合計GP","単位","合計GP","単位","合計GP",null,null,null,null,null,"２．オレンジ枠に修得した必修科目・選択必修",null,null,null,"P"]
["必修科目","初年次教育科目",null,null,"初年次セミナーⅠ",null,null,null,null,null,null,null,null,null,null,null,null,null,null,null,null,null,null,null,null,null,null,null,null,null,null,null,null,null,null,null,null,null,null,{"$f":"SUM(H7,J7,L7,N7,P7,R7,T7,V7,X7,Z7,AB7,AD7,AF7,AH7,AJ7,AL7)","v":0},2,null,null,null,"　　科目・全科目それぞれの合計単位数を記入"]
[null,null,null,null,"初年次セミナーⅡ",null,null,null,null,null,null,null,null,null,null,null,null,null,null,null,null,null,null,null,null,null,null,null,null,null,null,null,null,null,null,null,null,null,null,{"$f":"SUM(H8,J8,L8,N8,P8,R8,T8,V8,X8,Z8,AB8,AD8,AF8,AH8,AJ8,AL8)","v":0},2,null,null,null,"　　する。"]
[null,null,null,null,"大学と地域",null,null,null,null,null,null,null,null,null,null,null,null,null,null,null,null,null,null,null,null,null,null,null,null,null,null,null,null,null,null,null,null,null,null,0,2,null,null,null,"３．灰色枠に受講科目の合計GP（単位数×GP）"]
[null,null,null,null,"体育・健康","理論",null,null,null,null,null,null,null,null,null,null,null,null,null,null,null,null,null,null,null,null,null,null,null,null,null,null,null,null,null,null,null,null,null,0,1,null,null,null,"　　を計算し、その値を入力する。"]
[null,null,null,null,null,"実習",null,null,null,null,null,null,null,null,null,null,null,null,null,null,null,null,null,null,null,null,null,null,null,null,null,null,null,null,null,null,null,null,null,0,1,null,null,null,"　（評価とGPの関係：A=4,B=3,C=2,D=1,F=0,Pは"]
[null,null,null,null,"情報活用",null,null,null,null,null,null,null,null,null,null,null,null,null,null,null,null,null,null,null,null,null,null,null,null,null,null,null,null,null,null,null,null,null,null,0,2,null,null,null,"　　GPの該当外なので合計GP欄は空欄とする。）"]
[null,"ｸﾞﾛｰﾊﾞﾙ教育科目",null,null,"英語",null,null,null,null,null,null,null,null,null,null,null,null,null,null,null,null,null,null,null,null,null,null,null,null,null,null,null,null,null,null,null,null,null,null,0,6,null,null,null,"４．取得単位数を要修得単位数と比較して、"]
[null,null,null,null,"異文化理解",null,null,null,null,null,null,null,null,null,null,null,null,null,null,null,null,null,null,null,null,null,null,null,null,null,null,null,null,null,null,null,null,null,null,0,2,null,null,null,"　　単位取得状況を把握する。"]
[null,"必修科目　計",null,null,null,null,null,null,{"$f":"SUM(I7:I14)","v":0},null,{"$f":"SUM(K7:K14)","v":0},null,{"$f":"SUM(M7:M14)","v":0},null,{"$f":"SUM(O7:O14)","v":0},null,{"$f":"SUM(Q7:Q14)","v":0},null,{"$f":"SUM(S7:S14)","v":0},null,{"$f":"SUM(U7:U14)","v":0},null,{"$f":"SUM(W7:W14)","v":0},null,{"$f":"SUM(Y7:Y14)","v":0},null,{"$f":"SUM(AA7:AA14)","v":0},null,{"$f":"SUM(AC7:AC14)","v":0},null,{"$f":"SUM(AE7:AE14)","v":0},null,{"$f":"SUM(AG7:AG14)","v":0},null,{"$f":"SUM(AI7:AI14)","v":0},null,{"$f":"SUM(AK7:AK14)","v":0},null,{"$f":"SUM(AM7:AM14)","v":0},0,18,{"$f":"SUM(I15,K15,M15,O15,Q15,S15,U15,W15,Y15,AA15,AC15,AE15,AG15,AI15,AK15,AM15)","v":0}]
["選択必修科目","教養教育科目",null,null,"人文・社会科学分野","選択科目",null,null,null,null,null,null,null,null,null,null,null,null,null,null,null,null,null,null,null,null,null,null,null,null,null,null,null,null,null,null,null,null,null,0,4,null,null,null,"※期をまたがって開講される科目は、成績の出"]
[null,null,null,null,"自然科学分野","実験科目",null,null,null,null,null,null,null,null,null,null,null,null,null,null,null,null,null,null,null,null,null,null,null,null,null,null,null,null,null,null,null,null,null,0,1,null,null,null,"　された期に記入する。例えば通年の場合、後"]
[null,null,null,null,null,"選択科目",null,null,null,null,null,null,null,null,null,null,null,null,null,null,null,null,null,null,null,null,null,null,null,null,null,null,null,null,null,null,null,null,null,0,2,null,null,null,"　期に記入する。"]
[null,null,null,null,null,"基礎教育入門科目",null,null,null,null,null,null,null,null,null,null,null,null,null,null,null,null,null,null,null,null,null,null,null,null,null,null,null,null,null,null,null,null,null,0,2,null,null,null,"※本表最下部の表の入力方法について"]
[null,"教養活用科目",null,null,"統合Ⅰ（課題発見）",null,null,null,null,null,null,null,null,null,null,null,null,null,null,null,null,null,null,null,null,null,null,null,null,null,null,null,null,null,null,null,null,null,null,0,4,null,null,null,"　・P評価の単位数は、当該期①の欄に、"]
[null,null,null,null,"統合Ⅱ（課題解決）",null,null,null,null,null,null,null,null,null,null,null,null,null,null,null,null,null,null,null,null,null,null,null,null,null,null,null,null,null,null,null,null,null,null,0,null,null,null,null,"　・F評価の単位数は、当該期②の欄に、"]
[null,"選択必修科目　計",null,null,null,null,null,null,{"$f":"SUM(I16:I21)","v":0},null,{"$f":"SUM(K16:K21)","v":0},null,{"$f":"SUM(M16:M21)","v":0},null,{"$f":"SUM(O16:O21)","v":0},null,{"$f":"SUM(Q16:Q21)","v":0},null,{"$f":"SUM(S16:S21)","v":0},null,{"$f":"SUM(U16:U21)","v":0},null,{"$f":"SUM(W16:W21)","v":0},null,{"$f":"SUM(Y16:Y21)","v":0},null,{"$f":"SUM(AA16:AA21)","v":0},null,{"$f":"SUM(AC16:AC21)","v":0},null,{"$f":"SUM(AE16:AE21)","v":0},null,{"$f":"SUM(AG16:AG21)","v":0},null,{"$f":"SUM(AI16:AI21)","v":0},null,{"$f":"SUM(AK16:AK21)","v":0},null,{"$f":"SUM(AM16:AM21)","v":0},0,13,{"$f":"SUM(I22,K22,M22,O22,Q22,S22,U22,W22,Y22,AA22,AC22,AE22,AG22,AI22,AK22,AM22)","v":0},null,null,"　・評価F科目の再履修での修得単位数は当該"]
["全科目合計",null,null,null,null,null,null,{"$f":"H15+H22","v":0},{"$f":"I15+I22","v":0},{"$f":"J15+J22","v":0},0,0,0,0,0,0,0,0,0,0,0,0,0,null,{"$f":"Y15+Y22","v":0},null,{"$f":"AA15+AA22","v":0},null,{"$f":"AC15+AC22","v":0},null,{"$f":"AE15+AE22","v":0},null,{"$f":"AG15+AG22","v":0},null,{"$f":"AI15+AI22","v":0},null,{"$f":"AK15+AK22","v":0},null,{"$f":"AM15+AM22","v":0},0,31,{"$f":"SUM(I23,K23,M23,O23,Q23,S23,U23,W23,Y23,AA23,AC23,AE23,AG23,AI23,AK23,AM23)","v":0},null,null,"　　期③の欄に入力する。なお、②には再履修"]
["※","「期を増やす」欄により学年を４年間増やすことが可。",null,null,null,null,null,null,null,null,null,null,null,null,null,null,null,null,null,null,null,null,null,null,null,null,null,null,null,null,null,null,null,null,null,null,null,null,null,null,null,null,null,null,"　　の科目は含まない。"]
[null,null,null,null,null,null,null,null,null,null,null,null,null,null,null,null,null,null,null,null,null,null,null,null,null,null,null,null,null,null,null,null,null,null,null,null,null,null,null,null,null,null,null,null,"※評価Fの科目を再履修して単位を修得した場合"]
["①【共通教育科目】評価Pの単位数",null,null,null,null,null,null,null,null,null,null,null,null,null,null,null,null,null,null,null,null,null,null,null,null,null,null,null,null,null,null,null,null,null,null,null,null,null,null,{"$f":"SUM(H26:AM26)","v":0},null,null,null,null,"　の入力方法について"]
["②【共通教育科目】不合格（評価F）の単位数",null,null,null,null,null,null,null,null,null,null,null,null,null,null,null,null,null,null,null,null,null,null,null,null,null,null,null,null,null,null,null,null,null,null,null,null,null,null,{"$f":"SUM(H27:AM27)","v":0},null,null,null,null,"　上記1～3の手順で入力する。"]
["③【共通教育科目】評価F科目の再履修での修得単位数",null,null,null,null,null,null,null,null,null,null,null,null,null,null,null,null,null,null,null,null,null,null,null,null,null,null,null,null,null,null,null,null,null,null,null,null,null,null,{"$f":"SUM(H28:AM28)","v":0},null,null,null,null,"※評価D以上の科目を再履修して単位を修得した"]
[null,null,null,null,null,null,null,null,null,null,null,null,null,null,null,null,null,null,null,null,null,null,null,null,null,null,null,null,null,null,null,null,null,null,null,null,null,null,null,null,null,null,null,null,"　場合の入力方法について"]
[null,null,null,null,null,null,null,null,null,null,null,null,null,null,null,null,null,null,null,null,null,null,null,null,null,null,null,null,null,null,null,null,null,null,null,null,null,null,null,null,null,null,null,null,"　上記1～3の手順で入力した後、以前の評価（"]
[null,null,null,null,null,null,null,null,null,null,null,null,null,null,null,null,null,null,null,null,null,null,null,null,null,null,null,null,null,null,null,null,null,null,null,null,null,null,null,null,null,null,null,null,"  黄色枠）と合計GP（灰色枠）を削除し、オレ"]
[null,null,null,null,null,null,null,null,null,null,null,null,null,null,null,null,null,null,null,null,null,null,null,null,null,null,null,null,null,null,null,null,null,null,null,null,null,null,null,null,null,null,null,null,"　ンジ枠の合計修得単位数から再履修で修得し"]
[null,null,null,null,null,null,null,null,null,null,null,null,null,null,null,null,null,null,null,null,null,null,null,null,null,null,null,null,null,null,null,null,null,null,null,null,null,null,null,null,null,null,null,null,"　た単位数を引いた値を再入力する。"]
[]
[null,null,null,null,null,null,null,null,null,null,null,null,null,null,null,null,null,null,null,null,null,null,null,null,null,null,null,null,null,null,null,null,null,null,null,null,null,null,null,null,null,null,null,null,"（補足説明）"]
[null,null,null,null,null,null,null,null,null,null,null,null,null,null,null,null,null,null,null,null,null,null,null,null,null,null,null,null,null,null,null,null,null,null,null,null,null,null,null,null,null,null,null,null,"※留年した場合は「期を増やす」欄で列を増"]
[null,null,null,null,null,null,null,null,null,null,null,null,null,null,null,null,null,null,null,null,null,null,null,null,null,null,null,null,null,null,null,null,null,null,null,null,null,null,null,null,null,null,null,null,"　やす。"]

{"sheet":"単位修得状況確認表（専門教育科目）","index":4,"n_rows":90,"n_cols":50,"rows_kept":90,"cut":false,"hidden":false,"merged":[[87,34,87,35],[87,36,87,37],[88,22,88,23],[88,24,88,25],[88,26,88,27],[88,28,88,29],[88,30,88,31],[88,32,88,33],[88,34,88,35],[88,36,88,37],[87,22,87,23],[87,24,87,25],[87,26,87,27],[87,28,87,29],[87,30,87,31],[87,32,87,33],[81,0,81,5],[50,0,50,5],[52,0,59,0],[60,0,60,5],[52,1,59,1],[88,20,88,21],[88,0,88,5],[88,6,88,7],[88,8,88,9],[88,10,88,11],[88,12,88,13],[88,14,88,15],[88,16,88,17],[2,0,2,1],[4,14,4,15],[4,16,4,17],[4,18,4,19],[2,39,5,39],[4,20,4,21],[3,22,3,25],[4,34,4,35],[2,6,2,37],[4,36,4,37],[4,30,4,31],[4,32,4,33],[3,30,3,33],[3,34,3,37],[4,22,4,23],[3,26,3,29],[4,6,4,7],[5,0,5,1],[3,10,3,13],[3,14,3,17],[4,8,4,9],[4,10,4,11],[4,12,4,13],[4,24,4,25],[14,1,41,1],[42,0,42,5],[4,26,4,27],[4,28,4,29],[39,49,40,49],[44,49,45,49],[71,45,80,45],[6,45,41,45],[44,45,49,45],[52,45,59,45],[62,45,68,45],[73,43,75,43],[44,0,49,0],[44,1,49,1],[62,0,68,0],[62,1,68,1],[71,1,80,1],[71,0,80,0],[69,0,69,5],[89,8,89,9],[89,10,89,11],[89,12,89,13],[87,20,87,21],[83,0,83,5],[84,0,84,5],[87,6,87,7],[87,8,87,9],[87,10,87,11],[87,12,87,13],[87,14,87,15],[87,16,87,17],[88,18,88,19],[87,0,87,5],[87,18,87,19],[85,1,85,10],[1,0,1,40],[2,38,5,38],[3,6,3,9],[2,40,5,40],[3,18,3,21],[89,14,89,15],[89,16,89,17],[89,18,89,19],[89,20,89,21],[89,22,89,23],[89,24,89,25],[89,26,89,27],[89,28,89,29],[89,30,89,31],[89,32,89,33],[89,34,89,35],[89,36,89,37],[85,38,85,39],[6,0,11,0],[6,1,11,1],[12,0,12,5],[14,0,41,0],[89,0,89,5],[89,6,89,7]]}
[null,null,null,null,null,null,null,null,null,null,null,null,null,null,null,null,null,null,null,null,null,null,null,null,null,null,null,null,null,null,null,null,null,null,null,null,null,null,null,null,null,null,null,null,null,null,"A"]
["単位修得状況確認表（専門教育科目）",null,null,null,null,null,null,null,null,null,null,null,null,null,null,null,null,null,null,null,null,null,null,null,null,null,null,null,null,null,null,null,null,null,null,null,null,null,null,null,null,null,null,"受講科目の単位入力要領（専門教育科目）",null,null,"B"]
["区",null,"工 ","専","授","単","履修科目の評価およびGP",null,null,null,null,null,null,null,null,null,null,null,null,null,null,null,null,null,null,null,null,null,null,null,null,null,null,null,null,null,null,null,"取得単位数","要修得\n単位数","累積GP",null,null,"STEP１",null,null,"C"]
[null," ","学 "," ","業"," ","　年次",null,null,null,"　年次",null,null,null,"　年次",null,null,null,"　年次",null,null,null,"　年次",null,null,null,"　年次",null,null,null,"　年次",null,null,null,"　年次",null,null,null,null,null,null,null,null,"当該期に受講した科目の単位を区分ごとに以下の手順で",null,null,"D"]
[null,null,"基",null,"科",null,"１期",null,"２期",null,"３期",null,"４期",null,"５期",null,"６期",null,"７期",null,"８期",null,"９期",null,"10期",null,"11期",null,"12期",null,"13期",null,"14期",null,"15期",null,"16期",null,null,null,null,null,null,"入力し、要修得単位数と比較して単位取得状況を把握",null,null,"F"]
["分",null,"礎","門","目","位","評価","合計GP","評価","合計GP","評価","合計GP","評価","合計GP","評価","合計GP","評価","合計GP","評価","合計GP","評価","合計GP","評価","合計GP","評価","合計GP","評価","合計GP","評価","合計GP","評価","合計GP","評価","合計GP","評価","合計GP","評価","合計GP",null,null,null,null,null,"する。",null,null,"P"]
["基礎教育科目","必修科目",null,null,"微分積分学AⅠ",2,null,null,null,null,null,null,null,null,null,null,null,null,null,null,null,null,null,null,null,null,null,null,null,null,null,null,null,null,null,null,null,null,null,null,null,null,null,null,null,"必　　修　　科　　目",250152511101,{"$f":"E7","v":"微分積分学AⅠ"}]
[null,null,null,null,"線形代数学Ⅰ",2,null,null,null,null,null,null,null,null,null,null,null,null,null,null,null,null,null,null,null,null,null,null,null,null,null,null,null,null,null,null,null,null,null,null,null,null,null,"１．黄色枠に受講科目の評価（A,B,C,D,F,P）を入力する。",null,null,259742513102,"線形代数学Ⅰ"]
[null,null,null,null,"物理学基礎AⅠ",2,null,null,null,null,null,null,null,null,null,null,null,null,null,null,null,null,null,null,null,null,null,null,null,null,null,null,null,null,null,null,null,null,null,null,null,null,null,"２．オレンジ枠に合計修得単位数を入力する。",null,null,259742513101,"物理学基礎AⅠ"]
[null,null,null,null,"微分積分学AⅡ",2,null,null,null,null,null,null,null,null,null,null,null,null,null,null,null,null,null,null,null,null,null,null,null,null,null,null,null,null,null,null,null,null,null,null,null,null,null,"３．灰色枠に受講科目の合計GP（単位数×GP）を計算し、",null,null,250122500001,"微分積分学AⅡ"]
[null,null,null,null,"線形代数学Ⅱ",2,null,null,null,null,null,null,null,null,null,null,null,null,null,null,null,null,null,null,null,null,null,null,null,null,null,null,null,null,null,null,null,null,null,null,null,null,null,"    その値を入力する。",null,null,259752511111,"線形代数学Ⅱ"]
[null,null,null,null,"物理学基礎AⅡ",2,null,null,null,null,null,null,null,null,null,null,null,null,null,null,null,null,null,null,null,null,null,null,null,null,null,null,null,null,null,null,null,null,null,null,null,null,null,"　（評価とGPの関係：A=4,B=3,C=2,D=1,F=0,PはGPの該当",null,null,259752511104,"物理学基礎AⅡ"]
["合計",null,null,null,null,null,null,{"$f":"SUM(H7:H12)","v":0},null,{"$f":"SUM(J7:J12)","v":0},null,{"$f":"SUM(L7:L12)","v":0},null,{"$f":"SUM(N7:N12)","v":0},null,{"$f":"SUM(P7:P12)","v":0},null,{"$f":"SUM(R7:R12)","v":0},null,{"$f":"SUM(T7:T12)","v":0},null,{"$f":"SUM(V7:V12)","v":0},null,{"$f":"SUM(X7:X12)","v":0},null,{"$f":"SUM(Z7:Z12)","v":0},null,{"$f":"SUM(AB7:AB12)","v":0},null,{"$f":"SUM(AD7:AD12)","v":0},null,{"$f":"SUM(AF7:AF12)","v":0},null,{"$f":"SUM(AH7:AH12)","v":0},null,{"$f":"SUM(AJ7:AJ12)","v":0},null,{"$f":"SUM(AL7:AL12)","v":0},{"$f":"SUM(G13,I13,K13,M13,O13,Q13,S13,U13,W13,Y13,AA13,AC13,AE13,AG13,AI13,AK13)","v":0},12,{"$f":"SUM(H13,J13,L13,N13,P13,R13,T13,V13,X13,Z13,AB13,AD13,AF13,AH13,AJ13,AL13)","v":0},null,null,"　　外なので合計GP欄は空欄とする。）",null,null,259752511101,0]
[null,null,null,null,null,null,null,null,null,null,null,null,null,null,null,null,null,null,null,null,null,null,null,null,null,null,null,null,null,null,null,null,null,null,null,null,null,null,null,null,null,null,null,"４．修得単位数を要修得単位数と比較して単位取得状況"]
["専　　門　　科　　目","必　　修　　科　　目"," ","○","フレッシュマンセミナー",2,null,null,null,null,null,null,null,null,null,null,null,null,null,null,null,null,null,null,null,null,null,null,null,null,null,null,null,null,null,null,null,null,null,null,null,null,null,"    を把握する。",null,null,259752511112,"フレッシュマンセミナー"]
[null,null,"○"," ","海　洋　学　総　論",2,null,null,null,null,null,null,null,null,null,null,null,null,null,null,null,null,null,null,null,null,null,null,null,null,null,null,null,null,null,null,null,null,null,null,null,null,null,null,null,null,250122500002,"海　洋　学　総　論"]
[null,null,"○"," ","材　料　力　学　基　礎",2,null,null,null,null,null,null,null,null,null,null,null,null,null,null,null,null,null,null,null,null,null,null,null,null,null,null,null,null,null,null,null,null,null,null,null,null,null,"※期をまたがって開講される科目は、成績の出された期に",null,null,259752515117,"材　料　力　学　基　礎"]
[null,null,"○"," ","工業数学および演習Ⅰ",3,null,null,null,null,null,null,null,null,null,null,null,null,null,null,null,null,null,null,null,null,null,null,null,null,null,null,null,null,null,null,null,null,null,null,null,null,null,"  記入する。例えば通年の場合、後期に記入する。",null,null,259752511102,"工業数学および演習Ⅰ"]
[null,null," ","○","構　　造　　力　　学",2,null,null,null,null,null,null,null,null,null,null,null,null,null,null,null,null,null,null,null,null,null,null,null,null,null,null,null,null,null,null,null,null,null,null,null,null,null,"※本表最下部の表の入力方法について",null,null,259752511103,"構　　造　　力　　学"]
[null,null," ","○","水　　理　　学　　Ⅰ",2,null,null,null,null,null,null,null,null,null,null,null,null,null,null,null,null,null,null,null,null,null,null,null,null,null,null,null,null,null,null,null,null,null,null,null,null,null,"　・P評価の単位数は当該期①の欄に、",null,null,259752511401,"水　　理　　学　　Ⅰ"]
[null,null," ","○","建　設　材　料　学",2,null,null,null,null,null,null,null,null,null,null,null,null,null,null,null,null,null,null,null,null,null,null,null,null,null,null,null,null,null,null,null,null,null,null,null,null,null,"　・F評価の単位数は当該期②の欄に、",null,null,250152511102,"建　設　材　料　学"]
[null,null,"○",null,"工業数学および演習Ⅱ",3,null,null,null,null,null,null,null,null,null,null,null,null,null,null,null,null,null,null,null,null,null,null,null,null,null,null,null,null,null,null,null,null,null,null,null,null,null,"　・評価F科目の再履修での修得単位数は当該期③の欄に",null,null,250152511103,"工業数学および演習Ⅱ"]
[null,null," ","○","土　質　力　学　Ⅰ",2,null,null,null,null,null,null,null,null,null,null,null,null,null,null,null,null,null,null,null,null,null,null,null,null,null,null,null,null,null,null,null,null,null,null,null,null,null,"　　入力する。なお、②には再履修の科目は含まない。",null,null,259752511107,"土　質　力　学　Ⅰ"]
[null,null," ","○","水　　理　　学　　Ⅱ",2,null,null,null,null,null,null,null,null,null,null,null,null,null,null,null,null,null,null,null,null,null,null,null,null,null,null,null,null,null,null,null,null,null,null,null,null,null,"※評価Fの科目を再履修して単位を修得した場合の入力方"]
[null,null," ","○","測量学",2,null,null,null,null,null,null,null,null,null,null,null,null,null,null,null,null,null,null,null,null,null,null,null,null,null,null,null,null,null,null,null,null,null,null,null,null,null,"  法について"]
[null,null," ","○","測量実習",1,null,null,null,null,null,null,null,null,null,null,null,null,null,null,null,null,null,null,null,null,null,null,null,null,null,null,null,null,null,null,null,null,null,null,null,null,null,"  上記１～３の手順で入力する。"]
[null,null," ","○","土　質　力　学　Ⅱ",2,null,null,null,null,null,null,null,null,null,null,null,null,null,null,null,null,null,null,null,null,null,null,null,null,null,null,null,null,null,null,null,null,null,null,null,null,null,"※評価D以上の科目を再履修して単位を修得した場合の入"]
[null,null," ","○","海洋物理環境学",2,null,null,null,null,null,null,null,null,null,null,null,null,null,null,null,null,null,null,null,null,null,null,null,null,null,null,null,null,null,null,null,null,null,null,null,null,null,"  力方法について"]
[null,null," ","○","海　岸　環　境　工　学",2,null,null,null,null,null,null,null,null,null,null,null,null,null,null,null,null,null,null,null,null,null,null,null,null,null,null,null,null,null,null,null,null,null,null,null,null,null,"  上記１～３の手順で入力した後、以前の評価（黄色枠）と"]
[null,null," ","○","構　造　解　析　学",2,null,null,null,null,null,null,null,null,null,null,null,null,null,null,null,null,null,null,null,null,null,null,null,null,null,null,null,null,null,null,null,null,null,null,null,null,null,"  合計GP（灰色枠）を削除し、オレンジ枠の合計修得単位"]
[null,null," ","○","コンクリート構造設計学",2,null,null,null,null,null,null,null,null,null,null,null,null,null,null,null,null,null,null,null,null,null,null,null,null,null,null,null,null,null,null,null,null,null,null,null,null,null,"  数から再履修で修得した単位数を引いた値を再入力する。"]
[null,null,null,"○","海洋土木工学総合演習Ⅰ",1]
[null,null," ","○","沿岸環境学",2,null,null,null,null,null,null,null,null,null,null,null,null,null,null,null,null,null,null,null,null,null,null,null,null,null,null,null,null,null,null,null,null,null,null,null,null,null,"STEP２"]
[null,null," ","○","海　岸　防　災　工　学",2,null,null,null,null,null,null,null,null,null,null,null,null,null,null,null,null,null,null,null,null,null,null,null,null,null,null,null,null,null,null,null,null,null,null,null,null,null,"累積GPAの値を成績原簿と一致するかチェックする。"]
[null,null," ","○","海洋土木専門英語Ⅰ",2,null,null,null,null,null,null,null,null,null,null,null,null,null,null,null,null,null,null,null,null,null,null,null,null,null,null,null,null,null,null,null,null,null,null,null,null,null,"区分ごとの単位修得状況の入力が終了した後に、シート"]
[null,null," ","○","土木技術者倫理",2,null,null,null,null,null,null,null,null,null,null,null,null,null,null,null,null,null,null,null,null,null,null,null,null,null,null,null,null,null,null,null,null,null,null,null,null,null,"右下赤枠の「累積GPA」の値が、成績原簿に記載されて",null,null,259752511108,{"$f":"E36","v":"土木技術者倫理"}]
[null,null,null,"○","海洋土木工学総合演習Ⅱ",1,null,null,null,null,null,null,null,null,null,null,null,null,null,null,null,null,null,null,null,null,null,null,null,null,null,null,null,null,null,null,null,null,null,null,null,null,null,"いる累積GPAの値と一致しているかチェックし、一致",null,null,250072500005,"海洋土木工学総合演習Ⅱ"]
[null,null,null,"○","海洋土木デザイン工学Ⅰ",2,null,null,null,null,null,null,null,null,null,null,null,null,null,null,null,null,null,null,null,null,null,null,null,null,null,null,null,null,null,null,null,null,null,null,null,null,null,"していない場合はSTEP１に戻り、入力値に間違いが",null,null,259752515108,"海洋土木デザイン工学Ⅰ"]
[null,null,null,"○","建設マネジメント",2,null,null,null,null,null,null,null,null,null,null,null,null,null,null,null,null,null,null,null,null,null,null,null,null,null,null,null,null,null,null,null,null,null,null,null,null,null,"ないか見直し、正しく入力する。",null,null,259752515102,"建設マネジメント"]
[null,null,null,"○","海洋土木専門英語Ⅱ",2,null,null,null,null,null,null,null,null,null,null,null,null,null,null,null,null,null,null,null,null,null,null,null,null,null,null,null,null,null,null,null,null,null,null,null,null,null,null,null,null,250225000110,"海洋土木専門英語Ⅱ","2件以上ヒット","土木技術英語 250225000110\n土木技術英語 259852515101"]
[null,null,null,"○","海洋土木デザイン工学Ⅱ",2,null,null,null,null,null,null,null,null,null,null,null,null,null,null,null,null,null,null,null,null,null,null,null,null,null,null,null,null,null,null,null,null,null,null,null,null,null,"（補足説明）",null,null,250225000001,"海洋土木デザイン工学Ⅱ"]
[null,null,null,"○","卒　　業　　論　　文",6,null,null,null,null,null,null,null,null,null,null,null,null,null,null,null,null,null,null,null,null,null,null,null,null,null,null,null,null,null,null,null,null,null,null,null,null,null,"※留年した場合は「期を増やす」欄で列を増やす。",null,null,250072500010,"卒　　業　　論　　文"]
["合計",null,null,null,null,null,null,{"$f":"SUM(H15:H42)","v":0},null,{"$f":"SUM(J15:J42)","v":0},null,{"$f":"SUM(L15:L42)","v":0},null,{"$f":"SUM(N15:N42)","v":0},null,{"$f":"SUM(P15:P42)","v":0},null,{"$f":"SUM(R15:R42)","v":0},null,{"$f":"SUM(T15:T42)","v":0},null,{"$f":"SUM(V15:V42)","v":0},null,{"$f":"SUM(X15:X42)","v":0},null,{"$f":"SUM(Z15:Z42)","v":0},null,{"$f":"SUM(AB15:AB42)","v":0},null,{"$f":"SUM(AD15:AD42)","v":0},null,{"$f":"SUM(AF15:AF42)","v":0},null,{"$f":"SUM(AH15:AH42)","v":0},null,{"$f":"SUM(AJ15:AJ42)","v":0},null,{"$f":"SUM(AL15:AL42)","v":0},{"$f":"SUM(G43,I43,K43,M43,O43,Q43,S43,U43,W43,Y43,AA43,AC43,AE43,AG43,AI43,AK43)","v":0},59,{"$f":"SUM(H43,J43,L43,N43,P43,R43,T43,V43,X43,Z43,AB43,AD43,AF43,AH43,AJ43,AL43)","v":0},null,null,"※評価Pの科目については、GPおよびGPAの計算に含ま"]
[null,null,null,null,null,null,null,null,null,null,null,null,null,null,null,null,null,null,null,null,null,null,null,null,null,null,null,null,null,null,null,null,null,null,null,null,null,null,null,null,null,null,null,"　ない。しかしながら、進級・卒業要件の累積単位数"]
["専門科目","選択科目A群"," ","○","構　造　力　学　演　習",1,null,null,null,null,null,null,null,null,null,null,null,null,null,null,null,null,null,null,null,null,null,null,null,null,null,null,null,null,null,null,null,null,null,null,null,null,null,"　には含まれることがあるので、標準履修課程表で確認",null,"選択科目A群",259752512202,{"$f":"E45","v":"構　造　力　学　演　習"},"2件以上ヒット","構造力学演習（海）259752512202\n構造力学演習  海 259352511201"]
[null,null," ","○","土　質　力　学　演　習",1,null,null,null,null,null,null,null,null,null,null,null,null,null,null,null,null,null,null,null,null,null,null,null,null,null,null,null,null,null,null,null,null,null,null,null,null,null,"　すること。（インターンシップ等）",null,null,259752512201,"土　質　力　学　演　習"]
[null,null," ","○","水　理　学　演　習",1,null,null,null,null,null,null,null,null,null,null,null,null,null,null,null,null,null,null,null,null,null,null,null,null,null,null,null,null,null,null,null,null,null,null,null,null,null,"※随意科目については、GPおよびGPAの計算に含まれない。",null,null,259752512205,"水　理　学　演　習"]
[null,null," ","○","構造解析学演習",1,null,null,null,null,null,null,null,null,null,null,null,null,null,null,null,null,null,null,null,null,null,null,null,null,null,null,null,null,null,null,null,null,null,null,null,null,null,"　また、進級・卒業要件にも含まれない。",null,null,259752512203,"構造解析学演習"]
[null,null," ","○","コンクリート構造設計学演習",1,null,null,null,null,null,null,null,null,null,null,null,null,null,null,null,null,null,null,null,null,null,null,null,null,null,null,null,null,null,null,null,null,null,null,null,null,null,null,null,null,259752512206,"コンクリート構造設計学演習"]
[null,null,null,"○","海洋物理環境学演習",1,null,null,null,null,null,null,null,null,null,null,null,null,null,null,null,null,null,null,null,null,null,null,null,null,null,null,null,null,null,null,null,null,null,null,null,null,null,null,null,null,250152512202,"海洋物理環境学演習"]
["合計",null,null,null,null,null,null,{"$f":"SUM(H45:H50)","v":0},null,{"$f":"SUM(J45:J50)","v":0},null,{"$f":"SUM(L45:L50)","v":0},null,{"$f":"SUM(N45:N50)","v":0},null,{"$f":"SUM(P45:P50)","v":0},null,{"$f":"SUM(R45:R50)","v":0},null,{"$f":"SUM(T45:T50)","v":0},null,{"$f":"SUM(V45:V50)","v":0},null,{"$f":"SUM(X45:X50)","v":0},null,{"$f":"SUM(Z45:Z50)","v":0},null,{"$f":"SUM(AB45:AB50)","v":0},null,{"$f":"SUM(AD45:AD50)","v":0},null,{"$f":"SUM(AF45:AF50)","v":0},null,{"$f":"SUM(AH45:AH50)","v":0},null,{"$f":"SUM(AJ45:AJ50)","v":0},null,{"$f":"SUM(AL45:AL50)","v":0},{"$f":"SUM(G51,I51,K51,M51,O51,Q51,S51,U51,W51,Y51,AA51,AC51,AE51,AG51,AI51,AK51)","v":0},5,{"$f":"SUM(H51,J51,L51,N51,P51,R51,T51,V51,X51,Z51,AB51,AD51,AF51,AH51,AJ51,AL51)","v":0}]
[]
["専門科目","選択科目B群","○"," ","地球科学基礎",2,null,null,null,null,null,null,null,null,null,null,null,null,null,null,null,null,null,null,null,null,null,null,null,null,null,null,null,null,null,null,null,null,null,null,null,null,null,null,null,"選択科目B群",250299110001,{"$f":"E53","v":"地球科学基礎"}]
[null,null," ","○","海洋コンクリート工学",2,null,null,null,null,null,null,null,null,null,null,null,null,null,null,null,null,null,null,null,null,null,null,null,null,null,null,null,null,null,null,null,null,null,null,null,null,null,null,null,null,250152515101,"海洋コンクリート工学"]
[null,null," ","○","土木環境計画学",2,null,null,null,null,null,null,null,null,null,null,null,null,null,null,null,null,null,null,null,null,null,null,null,null,null,null,null,null,null,null,null,null,null,null,null,null,null,null,null,null,250152515103,"土木環境計画学"]
[null,null," ","○","環境汚染制御",2,null,null,null,null,null,null,null,null,null,null,null,null,null,null,null,null,null,null,null,null,null,null,null,null,null,null,null,null,null,null,null,null,null,null,null,null,null,null,null,null,250152511104,"環境汚染制御"]
[null,null,null,"○","流域保全工学",2,null,null,null,null,null,null,null,null,null,null,null,null,null,null,null,null,null,null,null,null,null,null,null,null,null,null,null,null,null,null,null,null,null,null,null,null,null,null,null,null,251325000022,"流域保全工学","ヒットせず"]
[null,null,null,"○","耐　震　工　学",2,null,null,null,null,null,null,null,null,null,null,null,null,null,null,null,null,null,null,null,null,null,null,null,null,null,null,null,null,null,null,null,null,null,null,null,null,null,null,null,null,250072500001,"耐　震　工　学"]
[null,null,null,"○","合成構造システム工学",2,null,null,null,null,null,null,null,null,null,null,null,null,null,null,null,null,null,null,null,null,null,null,null,null,null,null,null,null,null,null,null,null,null,null,null,null,null,null,null,null,259752515107,"合成構造システム工学"]
[null,null," ","○","海洋建設システム工学",2,null,null,null,null,null,null,null,null,null,null,null,null,null,null,null,null,null,null,null,null,null,null,null,null,null,null,null,null,null,null,null,null,null,null,null,null,null,null,null,null,259752515109,"海洋建設システム工学"]
["合計",null,null,null,null,null,null,{"$f":"SUM(H53:H60)","v":0},null,{"$f":"SUM(J53:J60)","v":0},null,{"$f":"SUM(L53:L60)","v":0},null,{"$f":"SUM(N53:N60)","v":0},null,{"$f":"SUM(P53:P60)","v":0},null,{"$f":"SUM(R53:R60)","v":0},null,{"$f":"SUM(T53:T60)","v":0},null,{"$f":"SUM(V53:V60)","v":0},null,{"$f":"SUM(X53:X60)","v":0},null,{"$f":"SUM(Z53:Z60)","v":0},null,{"$f":"SUM(AB53:AB60)","v":0},null,{"$f":"SUM(AD53:AD60)","v":0},null,{"$f":"SUM(AF53:AF60)","v":0},null,{"$f":"SUM(AH53:AH60)","v":0},null,{"$f":"SUM(AJ53:AJ60)","v":0},null,{"$f":"SUM(AL53:AL60)","v":0},{"$f":"SUM(G61,I61,K61,M61,O61,Q61,S61,U61,W61,Y61,AA61,AC61,AE61,AG61,AI61,AK61)","v":0},10,{"$f":"SUM(H61,J61,L61,N61,P61,R61,T61,V61,X61,Z61,AB61,AD61,AF61,AH61,AJ61,AL61)","v":0}]
[]
["専門科目","選択科目C群","○"," ","プログラミング演習",1,null,null,null,null,null,null,null,null,null,null,null,null,null,null,null,null,null,null,null,null,null,null,null,null,null,null,null,null,null,null,null,null,null,null,null,null,null,null,null,"選択科目C群",250122500005,{"$f":"E63","v":"プログラミング演習"}]
[null,null," ","○","海洋建設工学実験Ⅰ",1,null,null,null,null,null,null,null,null,null,null,null,null,null,null,null,null,null,null,null,null,null,null,null,null,null,null,null,null,null,null,null,null,null,null,null,null,null,null,null,null,259752514303,"海洋建設工学実験Ⅰ"]
[null,null," ","○","海洋建設工学実験Ⅲ",1,null,null,null,null,null,null,null,null,null,null,null,null,null,null,null,null,null,null,null,null,null,null,null,null,null,null,null,null,null,null,null,null,null,null,null,null,null,null,null,null,259752514301,"海洋建設工学実験Ⅲ"]
[null,null," ","○","海　岸　測　量　実　習",1,null,null,null,null,null,null,null,null,null,null,null,null,null,null,null,null,null,null,null,null,null,null,null,null,null,null,null,null,null,null,null,null,null,null,null,null,null,null,null,null,259752514402,"海　岸　測　量　実　習"]
[null,null," ","○","海洋建設工学実験Ⅱ",1,null,null,null,null,null,null,null,null,null,null,null,null,null,null,null,null,null,null,null,null,null,null,null,null,null,null,null,null,null,null,null,null,null,null,null,null,null,null,null,null,259752514302,"海洋建設工学実験Ⅱ"]
[null,null," ","○","海洋土木学外実習",1,null,null,null,null,null,null,null,null,null,null,null,null,null,null,null,null,null,null,null,null,null,null,null,null,null,null,null,null,null,null,null,null,null,null,null,null,null,null,null,null,259752514401,"海洋土木学外実習"]
[null,null," ","○","海　工　学　実　験",1,null,null,null,null,null,null,null,null,null,null,null,null,null,null,null,null,null,null,null,null,null,null,null,null,null,null,null,null,null,null,null,null,null,null,null,null,null,null,null,null,259752514304,"海　工　学　実　験"]
["合計",null,null,null,null,null,null,{"$f":"SUM(H63:H69)","v":0},null,{"$f":"SUM(J63:J69)","v":0},null,{"$f":"SUM(L63:L69)","v":0},null,{"$f":"SUM(N63:N69)","v":0},null,{"$f":"SUM(P63:P69)","v":0},null,{"$f":"SUM(R63:R69)","v":0},null,{"$f":"SUM(T63:T69)","v":0},null,{"$f":"SUM(V63:V69)","v":0},null,{"$f":"SUM(X63:X69)","v":0},null,{"$f":"SUM(Z63:Z69)","v":0},null,{"$f":"SUM(AB63:AB69)","v":0},null,{"$f":"SUM(AD63:AD69)","v":0},null,{"$f":"SUM(AF63:AF69)","v":0},null,{"$f":"SUM(AH63:AH69)","v":0},null,{"$f":"SUM(AJ63:AJ69)","v":0},null,{"$f":"SUM(AL63:AL69)","v":0},{"$f":"SUM(G70,I70,K70,M70,O70,Q70,S70,U70,W70,Y70,AA70,AC70,AE70,AG70,AI70,AK70)","v":0},5,{"$f":"SUM(H70,J70,L70,N70,P70,R70,T70,V70,X70,Z70,AB70,AD70,AF70,AH70,AJ70,AL70)","v":0}]
[]
["専門科目","選択科目D群","○"," ","情報システム",2,null,null,null,null,null,null,null,null,null,null,null,null,null,null,null,null,null,null,null,null,null,null,null,null,null,null,null,null,null,null,null,null,null,null,null,null,null,null,null,"選択科目D群",250099110002,{"$f":"E72","v":"情報システム"}]
[null,null,"○"," ","化学基礎",2,null,null,null,null,null,null,null,null,null,null,null,null,null,null,null,null,null,null,null,null,null,null,null,null,null,null,null,null,null,null,null,null,null,null,null,null,null,null,null,null,259742513104,"化学基礎"]
[null,null,"○"," ","数　　値　　解　　析",2,null,null,null,null,null,null,null,null,null,null,null,null,null,null,null,null,null,null,null,null,null,null,null,null,null,null,null,null,null,null,null,null,null,null,null,null,null,null,null,null,259752514102,"数　　値　　解　　析"]
[null,null,"○"," ","生　産　工　学　論",2,null,null,null,null,null,null,null,null,null,null,null,null,null,null,null,null,null,null,null,null,null,null,null,null,null,null,null,null,null,null,null,null,null,null,null,null,null,null,null,null,250299200001,"生　産　工　学　論"]
[null,null,"○"," ","エレクトロニクス論",2,null,null,null,null,null,null,null,null,null,null,null,null,null,null,null,null,null,null,null,null,null,null,null,null,null,null,null,null,null,null,null,null,null,null,null,null,null,null,null,null,250228100002,"エレクトロニクス論"]
[null,null,"○",null,"原子力・放射線と環境",2,null,null,null,null,null,null,null,null,null,null,null,null,null,null,null,null,null,null,null,null,null,null,null,null,null,null,null,null,null,null,null,null,null,null,null,null,null,null,null,null,250042099101,"原子力・放射線と環境"]
[null,null,"○"," ","材　料　科　学　論",2,null,null,null,null,null,null,null,null,null,null,null,null,null,null,null,null,null,null,null,null,null,null,null,null,null,null,null,null,null,null,null,null,null,null,null,null,null,null,null,null,250228100005,"材　料　科　学　論"]
[null,null,"○"," ","科　学　技　術　論",2,null,null,null,null,null,null,null,null,null,null,null,null,null,null,null,null,null,null,null,null,null,null,null,null,null,null,null,null,null,null,null,null,null,null,null,null,null,null,null,null,250228100006,"科　学　技　術　論"]
[null,null,"○"," ","環境工学論",2,null,null,null,null,null,null,null,null,null,null,null,null,null,null,null,null,null,null,null,null,null,null,null,null,null,null,null,null,null,null,null,null,null,null,null,null,null,null,null,null,250228100003,"環境工学論"]
[null,null,"○"," ","エネルギー工学論",2,null,null,null,null,null,null,null,null,null,null,null,null,null,null,null,null,null,null,null,null,null,null,null,null,null,null,null,null,null,null,null,null,null,null,null,null,null,null,null,null,250228100004,"エネルギー工学論"]
["合計",null,null,null,null,null,null,{"$f":"SUM(H72:H81)","v":0},null,{"$f":"SUM(J72:J81)","v":0},null,{"$f":"SUM(L72:L81)","v":0},null,{"$f":"SUM(N72:N81)","v":0},null,{"$f":"SUM(P72:P81)","v":0},null,{"$f":"SUM(R72:R81)","v":0},null,{"$f":"SUM(T72:T81)","v":0},null,{"$f":"SUM(V72:V81)","v":0},null,{"$f":"SUM(X72:X81)","v":0},null,{"$f":"SUM(Z72:Z81)","v":0},null,{"$f":"SUM(AB72:AB81)","v":0},null,{"$f":"SUM(AD72:AD81)","v":0},null,{"$f":"SUM(AF72:AF81)","v":0},null,{"$f":"SUM(AH72:AH81)","v":0},null,{"$f":"SUM(AJ72:AJ81)","v":0},null,{"$f":"SUM(AL72:AL81)","v":0},{"$f":"SUM(G82,I82,K82,M82,O82,Q82,S82,U82,W82,Y82,AA82,AC82,AE82,AG82,AI82,AK82)","v":0},2,{"$f":"SUM(H82,J82,L82,N82,P82,R82,T82,V82,X82,Z82,AB82,AD82,AF82,AH82,AJ82,AL82)","v":0}]
[]
["専門教育科目合計（単位数とGP）",null,null,null,null,null,{"$f":"SUM(G13,G43,G51,G61,G70,G82)","v":0},{"$f":"SUM(H13,H43,H51,H61,H70,H82)","v":0},{"$f":"SUM(I13,I43,I51,I61,I70,I82)","v":0},{"$f":"SUM(J13,J43,J51,J61,J70,J82)","v":0},{"$f":"SUM(K13,K43,K51,K61,K70,K82)","v":0},0,0,0,0,0,0,0,0,0,0,0,0,0,0,0,0,0,0,0,0,0,0,0,0,0,0,0,{"$f":"SUM(G84,I84,K84,M84,O84,Q84,S84,U84,W84,Y84,AA84,AC84,AE84,AG84,AI84,AK84)","v":0},93,{"$f":"SUM(H84,J84,L84,N84,P84,R84,T84,V84,X84,Z84,AB84,AD84,AF84,AH84,AJ84,AL84)","v":0}]
["(共通＋専門)教育科目合計（単位数とGP）",null,null,null,null,null,{"$f":"'単位修得状況確認表（共通教育科目，一般学生）'!H23+G84","v":0},{"$f":"'単位修得状況確認表（共通教育科目，一般学生）'!I23+H84","v":0},{"$f":"'単位修得状況確認表（共通教育科目，一般学生）'!J23+I84","v":0},{"$f":"'単位修得状況確認表（共通教育科目，一般学生）'!K23+J84","v":0},{"$f":"'単位修得状況確認表（共通教育科目，一般学生）'!L23+K84","v":0},{"$f":"'単位修得状況確認表（共通教育科目，一般学生）'!M23+L84","v":0},{"$f":"'単位修得状況確認表（共通教育科目，一般学生）'!N23+M84","v":0},{"$f":"'単位修得状況確認表（共通教育科目，一般学生）'!O23+N84","v":0},{"$f":"'単位修得状況確認表（共通教育科目，一般学生）'!P23+O84","v":0},{"$f":"'単位修得状況確認表（共通教育科目，一般学生）'!Q23+P84","v":0},{"$f":"'単位修得状況確認表（共通教育科目，一般学生）'!R23+Q84","v":0},{"$f":"'単位修得状況確認表（共通教育科目，一般学生）'!S23+R84","v":0},{"$f":"'単位修得状況確認表（共通教育科目，一般学生）'!T23+S84","v":0},{"$f":"'単位修得状況確認表（共通教育科目，一般学生）'!U23+T84","v":0},{"$f":"'単位修得状況確認表（共通教育科目，一般学生）'!V23+U84","v":0},{"$f":"'単位修得状況確認表（共通教育科目，一般学生）'!W23+V84","v":0},{"$f":"'単位修得状況確認表（共通教育科目，一般学生）'!X23+W84","v":0},{"$f":"'単位修得状況確認表（共通教育科目，一般学生）'!Y23+X84","v":0},{"$f":"'単位修得状況確認表（共通教育科目，一般学生）'!Z23+Y84","v":0},{"$f":"'単位修得状況確認表（共通教育科目，一般学生）'!AA23+Z84","v":0},{"$f":"'単位修得状況確認表（共通教育科目，一般学生）'!AB23+AA84","v":0},{"$f":"'単位修得状況確認表（共通教育科目，一般学生）'!AC23+AB84","v":0},{"$f":"'単位修得状況確認表（共通教育科目，一般学生）'!AD23+AC84","v":0},{"$f":"'単位修得状況確認表（共通教育科目，一般学生）'!AE23+AD84","v":0},{"$f":"'単位修得状況確認表（共通教育科目，一般学生）'!AF23+AE84","v":0},{"$f":"'単位修得状況確認表（共通教育科目，一般学生）'!AG23+AF84","v":0},{"$f":"'単位修得状況確認表（共通教育科目，一般学生）'!AH23+AG84","v":0},{"$f":"'単位修得状況確認表（共通教育科目，一般学生）'!AI23+AH84","v":0},{"$f":"'単位修得状況確認表（共通教育科目，一般学生）'!AJ23+AI84","v":0},{"$f":"'単位修得状況確認表（共通教育科目，一般学生）'!AK23+AJ84","v":0},{"$f":"'単位修得状況確認表（共通教育科目，一般学生）'!AL23+AK84","v":0},{"$f":"'単位修得状況確認表（共通教育科目，一般学生）'!AM23+AL84","v":0},{"$f":"SUM(G85,I85,K85,M85,O85,Q85,S85,U85,W85,Y85,AA85,AC85,AE85,AG85,AI85,AK85)","v":0},124,{"$f":"SUM(H85,J85,L85,N85,P85,R85,T85,V85,X85,Z85,AB85,AD85,AF85,AH85,AJ85,AL85)","v":0}]
["※","「期を増やす」欄により学年を４年間増やすことが可。",null,null,null,null,null,null,null,null,null,null,null,null,null,null,null,null,null,null,null,null,null,null,null,null,null,null,null,null,null,null,null,null,null,null,null,null,"累積GPA",null,{"$f":"IF(AM85-AM88>0,AO85/(AM85-AM88-'単位修得状況確認表（共通教育科目，一般学生）'!AN26+AM89+'単位修得状況確認表（共通教育科目，一般学生）'!AN27-AM90-'単位修得状況確認表（共通教育科目，一般学生）'!AN28),\"\")","v":""}]
[]
["①【専門教育科目】評価Pの単位数",null,null,null,null,null,null,null,null,null,null,null,null,null,null,null,null,null,null,null,null,null,null,null,null,null,null,null,null,null,null,null,null,null,null,null,null,null,{"$f":"SUM(G88:AL88)","v":0}]
["②【専門教育科目】不合格（評価F）の単位数",null,null,null,null,null,null,null,null,null,null,null,null,null,null,null,null,null,null,null,null,null,null,null,null,null,null,null,null,null,null,null,null,null,null,null,null,null,{"$f":"SUM(G89:AL89)","v":0}]
["③【専門教育科目】評価F科目の再履修での修得単位数",null,null,null,null,null,null,null,null,null,null,null,null,null,null,null,null,null,null,null,null,null,null,null,null,null,null,null,null,null,null,null,null,null,null,null,null,null,{"$f":"SUM(G90:AL90)","v":0}]

{"sheet":"累積グラフ","index":5,"n_rows":227,"n_cols":7,"rows_kept":227,"cut":false,"hidden":false,"merged":[[3,2,3,3],[3,4,3,5],[34,2,34,3],[34,4,34,5],[65,2,65,3]]}
[]
[null,"共通教育科目（必修科目）"]
[]
[null,null,"初年次教育科目",null,"ｸﾞﾛｰﾊﾞﾙ教育科目"]
[null,null,"取得単位数","累積取得単位数","取得単位数","累積取得単位数"]
[null,"1年前期終了時",{"$f":"SUM('単位修得状況確認表（共通教育科目，一般学生）'!H7:H12)","v":0},{"$f":"SUM(C$6:C6)","v":0},{"$f":"SUM('単位修得状況確認表（共通教育科目，一般学生）'!H13:H14)","v":0},{"$f":"SUM(E$6:E6)","v":0}]
[null,"1年後期終了時",{"$f":"SUM('単位修得状況確認表（共通教育科目，一般学生）'!J7:J12)","v":0},{"$f":"SUM(C$6:C7)","v":0},{"$f":"SUM('単位修得状況確認表（共通教育科目，一般学生）'!J13:J14)","v":0},{"$f":"SUM(E$6:E7)","v":0}]
[null,"2年前期終了時",{"$f":"SUM('単位修得状況確認表（共通教育科目，一般学生）'!L7:L12)","v":0},{"$f":"SUM(C$6:C8)","v":0},{"$f":"SUM('単位修得状況確認表（共通教育科目，一般学生）'!L13:L14)","v":0},{"$f":"SUM(E$6:E8)","v":0}]
[null,"2年後期終了時",{"$f":"SUM('単位修得状況確認表（共通教育科目，一般学生）'!N7:N12)","v":0},{"$f":"SUM(C$6:C9)","v":0},{"$f":"SUM('単位修得状況確認表（共通教育科目，一般学生）'!N13:N14)","v":0},{"$f":"SUM(E$6:E9)","v":0}]
[null,"3年前期終了時",{"$f":"SUM('単位修得状況確認表（共通教育科目，一般学生）'!P7:P12)","v":0},{"$f":"SUM(C$6:C10)","v":0},{"$f":"SUM('単位修得状況確認表（共通教育科目，一般学生）'!P13:P14)","v":0},{"$f":"SUM(E$6:E10)","v":0}]
[null,"3年後期終了時",{"$f":"SUM('単位修得状況確認表（共通教育科目，一般学生）'!R7:R12)","v":0},{"$f":"SUM(C$6:C11)","v":0},{"$f":"SUM('単位修得状況確認表（共通教育科目，一般学生）'!R13:R14)","v":0},{"$f":"SUM(E$6:E11)","v":0}]
[null,"4年前期終了時",{"$f":"SUM('単位修得状況確認表（共通教育科目，一般学生）'!T7:T12)","v":0},{"$f":"SUM(C$6:C12)","v":0},{"$f":"SUM('単位修得状況確認表（共通教育科目，一般学生）'!T13:T14)","v":0},{"$f":"SUM(E$6:E12)","v":0}]
[null,"4年後期終了時",{"$f":"SUM('単位修得状況確認表（共通教育科目，一般学生）'!V7:V12)","v":0},{"$f":"SUM(C$6:C13)","v":0},{"$f":"SUM('単位修得状況確認表（共通教育科目，一般学生）'!V13:V14)","v":0},{"$f":"SUM(E$6:E13)","v":0}]
[]
[]
[]
[]
[]
[]
[]
[]
[]
[]
[]
[]
[]
[]
[]
[]
[]
[]
[]
[null,"共通教育科目（選択必修科目）"]
[]
[null,null,"教養教育科目",null,"教養活用科目"]
[null,null,"取得単位数","累積取得単位数","取得単位数","累積取得単位数"]
[null,"1年前期終了時",{"$f":"SUM('単位修得状況確認表（共通教育科目，一般学生）'!H16:H19)","v":0},{"$f":"SUM(C$37:C37)","v":0},{"$f":"SUM('単位修得状況確認表（共通教育科目，一般学生）'!H20:H21)","v":0},{"$f":"SUM(E$37:E37)","v":0}]
[null,"1年後期終了時",{"$f":"SUM('単位修得状況確認表（共通教育科目，一般学生）'!J16:J19)","v":0},{"$f":"SUM(C$37:C38)","v":0},{"$f":"SUM('単位修得状況確認表（共通教育科目，一般学生）'!J20:J21)","v":0},{"$f":"SUM(E$37:E38)","v":0}]
[null,"2年前期終了時",{"$f":"SUM('単位修得状況確認表（共通教育科目，一般学生）'!L16:L19)","v":0},{"$f":"SUM(C$37:C39)","v":0},{"$f":"SUM('単位修得状況確認表（共通教育科目，一般学生）'!L20:L21)","v":0},{"$f":"SUM(E$37:E39)","v":0}]
[null,"2年後期終了時",{"$f":"SUM('単位修得状況確認表（共通教育科目，一般学生）'!N16:N19)","v":0},{"$f":"SUM(C$37:C40)","v":0},{"$f":"SUM('単位修得状況確認表（共通教育科目，一般学生）'!N20:N21)","v":0},{"$f":"SUM(E$37:E40)","v":0}]
[null,"3年前期終了時",{"$f":"SUM('単位修得状況確認表（共通教育科目，一般学生）'!P16:P19)","v":0},{"$f":"SUM(C$37:C41)","v":0},{"$f":"SUM('単位修得状況確認表（共通教育科目，一般学生）'!P20:P21)","v":0},{"$f":"SUM(E$37:E41)","v":0}]
[null,"3年後期終了時",{"$f":"SUM('単位修得状況確認表（共通教育科目，一般学生）'!R16:R19)","v":0},{"$f":"SUM(C$37:C42)","v":0},{"$f":"SUM('単位修得状況確認表（共通教育科目，一般学生）'!R20:R21)","v":0},{"$f":"SUM(E$37:E42)","v":0}]
[null,"4年前期終了時",{"$f":"SUM('単位修得状況確認表（共通教育科目，一般学生）'!T16:T19)","v":0},{"$f":"SUM(C$37:C43)","v":0},{"$f":"SUM('単位修得状況確認表（共通教育科目，一般学生）'!T20:T21)","v":0},{"$f":"SUM(E$37:E43)","v":0}]
[null,"4年後期終了時",{"$f":"SUM('単位修得状況確認表（共通教育科目，一般学生）'!V16:V19)","v":0},{"$f":"SUM(C$37:C44)","v":0},{"$f":"SUM('単位修得状況確認表（共通教育科目，一般学生）'!V20:V21)","v":0},{"$f":"SUM(E$37:E44)","v":0}]
[]
[]
[]
[]
[]
[]
[]
[]
[]
[]
[]
[]
[]
[]
[]
[]
[]
[]
[]
[null,"専門教育科目（基礎教育科目）"]
[]
[null,null,"必修科目"]
[null,null,"取得単位数","累積取得単位数"]
[null,"1年前期終了時",{"$f":"'単位修得状況確認表（専門教育科目）'!G13","v":0},{"$f":"SUM(C$68:C68)","v":0}]
[null,"1年後期終了時",{"$f":"'単位修得状況確認表（専門教育科目）'!I13","v":0},{"$f":"SUM(C$68:C69)","v":0}]
[null,"2年前期終了時",{"$f":"'単位修得状況確認表（専門教育科目）'!K13","v":0},{"$f":"SUM(C$68:C70)","v":0}]
[null,"2年後期終了時",{"$f":"'単位修得状況確認表（専門教育科目）'!M13","v":0},{"$f":"SUM(C$68:C71)","v":0}]
[null,"3年前期終了時",{"$f":"'単位修得状況確認表（専門教育科目）'!O13","v":0},{"$f":"SUM(C$68:C72)","v":0}]
[null,"3年後期終了時",{"$f":"'単位修得状況確認表（専門教育科目）'!Q13","v":0},{"$f":"SUM(C$68:C73)","v":0}]
[null,"4年前期終了時",{"$f":"'単位修得状況確認表（専門教育科目）'!S13","v":0},{"$f":"SUM(C$68:C74)","v":0}]
[null,"4年後期終了時",{"$f":"'単位修得状況確認表（専門教育科目）'!U13","v":0},{"$f":"SUM(C$68:C75)","v":0}]
[]
[]
[]
[]
[]
[]
[]
[null,"専門教育科目（必修科目）"]
[]
[null,null,"取得単位数","累積取得単位数"]
[null,"1年前期終了時",{"$f":"'単位修得状況確認表（専門教育科目）'!G43","v":0},{"$f":"SUM(C$86:C86)","v":0}]
[null,"1年後期終了時",{"$f":"'単位修得状況確認表（専門教育科目）'!I43","v":0},{"$f":"SUM(C$86:C87)","v":0}]
[null,"2年前期終了時",{"$f":"'単位修得状況確認表（専門教育科目）'!K43","v":0},{"$f":"SUM(C$86:C88)","v":0}]
[null,"2年後期終了時",{"$f":"'単位修得状況確認表（専門教育科目）'!M43","v":0},{"$f":"SUM(C$86:C89)","v":0}]
[null,"3年前期終了時",{"$f":"'単位修得状況確認表（専門教育科目）'!O43","v":0},{"$f":"SUM(C$86:C90)","v":0}]
[null,"3年後期終了時",{"$f":"'単位修得状況確認表（専門教育科目）'!Q43","v":0},{"$f":"SUM(C$86:C91)","v":0}]
[null,"4年前期終了時",{"$f":"'単位修得状況確認表（専門教育科目）'!S43","v":0},{"$f":"SUM(C$86:C92)","v":0}]
[null,"4年後期終了時",{"$f":"'単位修得状況確認表（専門教育科目）'!U43","v":0},{"$f":"SUM(C$86:C93)","v":0}]
[]
[]
[]
[]
[]
[]
[]
[]
[]
[]
[]
[]
[]
[]
[]
[]
[]
[]
[null,"専門教育科目（選択科目A群）"]
[]
[null,null,"取得単位数","累積取得単位数"]
[null,"1年前期終了時",{"$f":"'単位修得状況確認表（専門教育科目）'!G51","v":0},{"$f":"SUM(C$115:C115)","v":0}]
[null,"1年後期終了時",{"$f":"'単位修得状況確認表（専門教育科目）'!I51","v":0},{"$f":"SUM(C$115:C116)","v":0}]
[null,"2年前期終了時",{"$f":"'単位修得状況確認表（専門教育科目）'!K51","v":0},{"$f":"SUM(C$115:C117)","v":0}]
[null,"2年後期終了時",{"$f":"'単位修得状況確認表（専門教育科目）'!M51","v":0},{"$f":"SUM(C$115:C118)","v":0}]
[null,"3年前期終了時",{"$f":"'単位修得状況確認表（専門教育科目）'!O51","v":0},{"$f":"SUM(C$115:C119)","v":0}]
[null,"3年後期終了時",{"$f":"'単位修得状況確認表（専門教育科目）'!Q51","v":0},{"$f":"SUM(C$115:C120)","v":0}]
[null,"4年前期終了時",{"$f":"'単位修得状況確認表（専門教育科目）'!S51","v":0},{"$f":"SUM(C$115:C121)","v":0}]
[null,"4年後期終了時",{"$f":"'単位修得状況確認表（専門教育科目）'!U51","v":0},{"$f":"SUM(C$115:C122)","v":0}]
[]
[]
[]
[]
[]
[]
[]
[null,"専門教育科目（選択科目B群）"]
[]
[null,null,"取得単位数","累積取得単位数"]
[null,"1年前期終了時",{"$f":"'単位修得状況確認表（専門教育科目）'!G61","v":0},{"$f":"SUM(C$133:C133)","v":0}]
[null,"1年後期終了時",{"$f":"'単位修得状況確認表（専門教育科目）'!I61","v":0},{"$f":"SUM(C$133:C134)","v":0}]
[null,"2年前期終了時",{"$f":"'単位修得状況確認表（専門教育科目）'!K61","v":0},{"$f":"SUM(C$133:C135)","v":0}]
[null,"2年後期終了時",{"$f":"'単位修得状況確認表（専門教育科目）'!M61","v":0},{"$f":"SUM(C$133:C136)","v":0}]
[null,"3年前期終了時",{"$f":"'単位修得状況確認表（専門教育科目）'!O61","v":0},{"$f":"SUM(C$133:C137)","v":0}]
[null,"3年後期終了時",{"$f":"'単位修得状況確認表（専門教育科目）'!Q61","v":0},{"$f":"SUM(C$133:C138)","v":0}]
[null,"4年前期終了時",{"$f":"'単位修得状況確認表（専門教育科目）'!S61","v":0},{"$f":"SUM(C$133:C139)","v":0}]
[null,"4年後期終了時",{"$f":"'単位修得状況確認表（専門教育科目）'!U61","v":0},{"$f":"SUM(C$133:C140)","v":0}]
[]
[]
[]
[]
[]
[]
[]
[null,"専門教育科目（選択科目C群）"]
[]
[null,null,"取得単位数","累積取得単位数"]
[null,"1年前期終了時",{"$f":"'単位修得状況確認表（専門教育科目）'!G70","v":0},{"$f":"SUM(C$151:C151)","v":0}]
[null,"1年後期終了時",{"$f":"'単位修得状況確認表（専門教育科目）'!I70","v":0},{"$f":"SUM(C$151:C152)","v":0}]
[null,"2年前期終了時",{"$f":"'単位修得状況確認表（専門教育科目）'!K70","v":0},{"$f":"SUM(C$151:C153)","v":0}]
[null,"2年後期終了時",{"$f":"'単位修得状況確認表（専門教育科目）'!M70","v":0},{"$f":"SUM(C$151:C154)","v":0}]
[null,"3年前期終了時",{"$f":"'単位修得状況確認表（専門教育科目）'!O70","v":0},{"$f":"SUM(C$151:C155)","v":0}]
[null,"3年後期終了時",{"$f":"'単位修得状況確認表（専門教育科目）'!Q70","v":0},{"$f":"SUM(C$151:C156)","v":0}]
[null,"4年前期終了時",{"$f":"'単位修得状況確認表（専門教育科目）'!S70","v":0},{"$f":"SUM(C$151:C157)","v":0}]
[null,"4年後期終了時",{"$f":"'単位修得状況確認表（専門教育科目）'!U70","v":0},{"$f":"SUM(C$151:C158)","v":0}]
[]
[]
[]
[]
[]
[]
[]
[null,"専門教育科目（選択科目D群）"]
[]
[null,null,"取得単位数","累積取得単位数"]
[null,"1年前期終了時",{"$f":"'単位修得状況確認表（専門教育科目）'!G82","v":0},{"$f":"SUM(C$169:C169)","v":0}]
[null,"1年後期終了時",{"$f":"'単位修得状況確認表（専門教育科目）'!I82","v":0},{"$f":"SUM(C$169:C170)","v":0}]
[null,"2年前期終了時",{"$f":"'単位修得状況確認表（専門教育科目）'!K82","v":0},{"$f":"SUM(C$169:C171)","v":0}]
[null,"2年後期終了時",{"$f":"'単位修得状況確認表（専門教育科目）'!M82","v":0},{"$f":"SUM(C$169:C172)","v":0}]
[null,"3年前期終了時",{"$f":"'単位修得状況確認表（専門教育科目）'!O82","v":0},{"$f":"SUM(C$169:C173)","v":0}]
[null,"3年後期終了時",{"$f":"'単位修得状況確認表（専門教育科目）'!Q82","v":0},{"$f":"SUM(C$169:C174)","v":0}]
[null,"4年前期終了時",{"$f":"'単位修得状況確認表（専門教育科目）'!S82","v":0},{"$f":"SUM(C$169:C175)","v":0}]
[null,"4年後期終了時",{"$f":"'単位修得状況確認表（専門教育科目）'!U82","v":0},{"$f":"SUM(C$169:C176)","v":0}]
[]
[]
[]
[]
[]
[]
[]
[]
[null,"累積単位数"]
[]
[null,null,"取得単位数","累積取得単位数"]
[null,"1年前期終了時",{"$f":"SUM(C6,E6,C37,E37,C68,C86,C115,C133,C151,C169)","v":0},{"$f":"SUM(C$188:C188)","v":0}]
[null,"1年後期終了時",{"$f":"SUM(C7,E7,C38,E38,C69,C87,C116,C134,C152,C170)","v":0},{"$f":"SUM(C$188:C189)","v":0}]
[null,"2年前期終了時",0,{"$f":"SUM(C$188:C190)","v":0}]
[null,"2年後期終了時",0,{"$f":"SUM(C$188:C191)","v":0}]
[null,"3年前期終了時",0,{"$f":"SUM(C$188:C192)","v":0}]
[null,"3年後期終了時",0,{"$f":"SUM(C$188:C193)","v":0}]
[null,"4年前期終了時",0,{"$f":"SUM(C$188:C194)","v":0}]
[null,"4年後期終了時",0,{"$f":"SUM(C$188:C195)","v":0}]
[]
[]
[]
[]
[]
[]
[]
[]
[]
[]
[]
[]
[]
[]
[]
[]
[]
[]
[]
[]
[]
[null,"GPA"]
[]
[null,null,"累積GP","累積GPA","GPA累積単位数","累積P","累積F"]
[null,"1年前期終了時",{"$f":"'単位修得状況確認表（共通教育科目，一般学生）'!I23+'単位修得状況確認表（専門教育科目）'!H84","v":0},{"$f":"IF(E220=0,\"\",C220/E220)","v":""},{"$f":"D188-F220+G220","v":0},{"$f":"'単位修得状況確認表（共通教育科目，一般学生）'!H26+'単位修得状況確認表（専門教育科目）'!G88","v":0},{"$f":"'単位修得状況確認表（共通教育科目，一般学生）'!H27+'単位修得状況確認表（専門教育科目）'!G89-'単位修得状況確認表（共通教育科目，一般学生）'!H28-'単位修得状況確認表（専門教育科目）'!G90","v":0}]
[null,"1年後期終了時",{"$f":"C220+'単位修得状況確認表（共通教育科目，一般学生）'!K23+'単位修得状況確認表（専門教育科目）'!J84","v":0},"",{"$f":"D189-F221+G221","v":0},{"$f":"F220+'単位修得状況確認表（共通教育科目，一般学生）'!J26+'単位修得状況確認表（専門教育科目）'!I88","v":0},{"$f":"G220+'単位修得状況確認表（共通教育科目，一般学生）'!J27+'単位修得状況確認表（専門教育科目）'!I89-'単位修得状況確認表（共通教育科目，一般学生）'!J28-'単位修得状況確認表（専門教育科目）'!I90","v":0}]
[null,"2年前期終了時",{"$f":"C221+'単位修得状況確認表（共通教育科目，一般学生）'!M23+'単位修得状況確認表（専門教育科目）'!L84","v":0},"",{"$f":"D190-F222+G222","v":0},{"$f":"F221+'単位修得状況確認表（共通教育科目，一般学生）'!L26+'単位修得状況確認表（専門教育科目）'!K88","v":0},{"$f":"G221+'単位修得状況確認表（共通教育科目，一般学生）'!L27+'単位修得状況確認表（専門教育科目）'!K89-'単位修得状況確認表（共通教育科目，一般学生）'!L28-'単位修得状況確認表（専門教育科目）'!K90","v":0}]
[null,"2年後期終了時",{"$f":"C222+'単位修得状況確認表（共通教育科目，一般学生）'!O23+'単位修得状況確認表（専門教育科目）'!N84","v":0},"",0,{"$f":"F222+'単位修得状況確認表（共通教育科目，一般学生）'!N26+'単位修得状況確認表（専門教育科目）'!M88","v":0},{"$f":"G222+'単位修得状況確認表（共通教育科目，一般学生）'!N27+'単位修得状況確認表（専門教育科目）'!M89-'単位修得状況確認表（共通教育科目，一般学生）'!N28-'単位修得状況確認表（専門教育科目）'!M90","v":0}]
[null,"3年前期終了時",{"$f":"C223+'単位修得状況確認表（共通教育科目，一般学生）'!Q23+'単位修得状況確認表（専門教育科目）'!P84","v":0},"",0,{"$f":"F223+'単位修得状況確認表（共通教育科目，一般学生）'!P26+'単位修得状況確認表（専門教育科目）'!O88","v":0},{"$f":"G223+'単位修得状況確認表（共通教育科目，一般学生）'!P27+'単位修得状況確認表（専門教育科目）'!O89-'単位修得状況確認表（共通教育科目，一般学生）'!P28-'単位修得状況確認表（専門教育科目）'!O90","v":0}]
[null,"3年後期終了時",{"$f":"C224+'単位修得状況確認表（共通教育科目，一般学生）'!S23+'単位修得状況確認表（専門教育科目）'!R84","v":0},"",0,{"$f":"F224+'単位修得状況確認表（共通教育科目，一般学生）'!R26+'単位修得状況確認表（専門教育科目）'!Q88","v":0},{"$f":"G224+'単位修得状況確認表（共通教育科目，一般学生）'!R27+'単位修得状況確認表（専門教育科目）'!Q89-'単位修得状況確認表（共通教育科目，一般学生）'!R28-'単位修得状況確認表（専門教育科目）'!Q90","v":0}]
[null,"4年前期終了時",{"$f":"C225+'単位修得状況確認表（共通教育科目，一般学生）'!U23+'単位修得状況確認表（専門教育科目）'!T84","v":0},"",0,{"$f":"F225+'単位修得状況確認表（共通教育科目，一般学生）'!T26+'単位修得状況確認表（専門教育科目）'!S88","v":0},{"$f":"G225+'単位修得状況確認表（共通教育科目，一般学生）'!T27+'単位修得状況確認表（専門教育科目）'!S89-'単位修得状況確認表（共通教育科目，一般学生）'!T28-'単位修得状況確認表（専門教育科目）'!S90","v":0}]
[null,"4年後期終了時",{"$f":"C226+'単位修得状況確認表（共通教育科目，一般学生）'!W23+'単位修得状況確認表（専門教育科目）'!V84","v":0},"",0,{"$f":"F226+'単位修得状況確認表（共通教育科目，一般学生）'!V26+'単位修得状況確認表（専門教育科目）'!U88","v":0},{"$f":"G226+'単位修得状況確認表（共通教育科目，一般学生）'!V27+'単位修得状況確認表（専門教育科目）'!U89-'単位修得状況確認表（共通教育科目，一般学生）'!V28-'単位修得状況確認表（専門教育科目）'!U90","v":0}]